Cogmind - Beta 9.6 @@@ ROGUE MODE // 2020.08.22 @ 23:56:28 Player: Vectis Result: Destroyed by P-70 Sage via exploding Fusion Modulator Performance ------------- Evolutions (6) 3000 Regions Visited (25) 5000 Robots Destroyed (194) 970 Value Destroyed (4900) 4900 Prototype IDs (35) 700 Alien Tech Used (1) 200 Bonus (1710) 1710 TOTAL SCORE: 16480 Bonus ------- High Alert Combat Kills 39 Follower Combat Kills 426 Network Hubs Disabled 200 Met Data Miner 300 Met Zhirov 300 Read Decrypted Archives 600 Friendly Fire -155 Cogmind --------- Core Integrity 0/1150 Matter 263/300 Energy 99/100 System Corruption 13% Temperature Cool (24) Movement Core (50) Location -4/Factory Parts ------- > --- POWER (1) -------- (None) > --- PROPULSION (4) --- Improved Gravmag System Combat Linear Gravjet > --- UTILITY (12) ----- Improved Targeting Computer Improved Core Analyzer Improved Core Analyzer Hacking Suite > --- WEAPON (2) ------- (None) > --- INVENTORY (4) ---- Energy Well (500) Transdimensional Reconstructor Long-range Missile Launcher Lance Peak State ------------ > --- POWER ------------ Light Fission Core > --- PROPULSION ------- Experimental Cesium-ion Thruster Experimental Cesium-ion Thruster Nuclear Pulse Array > --- UTILITY ---------- Medium Storage Unit Medium Storage Unit Experimental Sensor Array Advanced Signal Interpreter Improved Propulsion Shielding Hacking Suite Improved Hacking Suite Advanced Hacking Suite Advanced Hacking Suite Improved System Shield Advanced System Shield > --- WEAPON ----------- Lance > --- INVENTORY -------- Heavy Antimatter Reactor Improved VTOL Module Energy Well Improved Targeting Computer Improved Core Analyzer Advanced ECM Suite Transdimensional Reconstructor Hypervelocity Gauss Rifle Hypervelocity Coil Gun Hypervelocity Coil Gun Long-range Missile Launcher [Rating: 88] Favorites ----------- Power Ion Engine Engine Ion Engine Power Core Light Nuclear Core Propulsion Light Treads Treads Light Treads Leg Aluminum Leg Hover Unit Combat Linear Gravjet Flight Unit Improved VTOL Module Utility Large Storage Unit Device Long-range Sensor Array Storage Large Storage Unit Processor Advanced Signal Interpreter Hackware Hacking Suite Protection Medium Armor Plating Weapon Light EM Pulse Cannon Energy Gun Improved EM Shotgun Energy Cannon Light EM Pulse Cannon Ballistic Gun Improved Assault Rifle Launcher Mini Grenade Launcher Special Weapon Plasma Cutter Slashing Weapon Scythe Piercing Weapon Makeshift Spear Build | -11 -10 -10 -9 -9 -8 -7 -7 -7 -7 -6 -6 -6 -6 -6 -6 -5 -5 -5 -5 -5 -5 -4 -4 -4 -4 ------- Run | Scr Mat Min Mat Sto Mat Fac Low Low Dat Pro Fac Ext Cet Arc Hub Fac Was Fac Upp Upp Zhi Pro Fac Was Fac Slots Evolved 12 | . . . 2 . 2 2 . . . . 2 . . . . 2 . . . . . . 2 . . Power . | . . . . . . . . . . . . . . . . . . . . . . . . . . Propulsion 2 | . . . 1 . . 1 . . . . . . . . . . . . . . . . . . . Utility 10 | . . . 1 . 2 1 . . . . 2 . . . . 2 . . . . . . 2 . . Weapon . | . . . . . . . . . . . . . . . . . . . . . . . . . . Parts Attached 307 | 1 32 5 58 25 41 12 3 1 1 1 3 17 3 2 2 30 3 23 2 3 5 3 12 . 19 Power 23 | . 3 1 1 3 2 . . . . . . . . . . 7 1 2 . . . . 1 . 2 Engine 11 | . 3 1 1 3 1 . . . . . . . . . . 2 . . . . . . . . . Core 12 | . . . . . 1 . . . . . . . . . . 5 1 2 . . . . 1 . 2 Reactor . | . . . . . . . . . . . . . . . . . . . . . . . . . . Propulsion 81 | . 10 . 21 11 15 5 . . . . . 2 . . . 4 . 2 . . . . 3 . 8 Treads 42 | . . . 19 11 11 . . . . . . . . . . . . . . . . . . . 1 Leg 12 | . 10 . 1 . . . . . . . . . . . . . . . . . . . . . 1 Wheel . | . . . . . . . . . . . . . . . . . . . . . . . . . . Hover 5 | . . . . . . . . . . . . . . . . . . . . . . . . . 5 Flight 22 | . . . 1 . 4 5 . . . . . 2 . . . 4 . 2 . . . . 3 . 1 Utility 85 | 1 2 . 5 2 9 7 3 . 1 1 3 4 3 1 2 10 2 11 1 3 4 . 4 . 6 Device 36 | . . . . . 4 3 2 . . 1 1 1 1 . 1 3 2 9 1 2 3 . 2 . . Storage 11 | 1 2 . 1 2 2 . . . . . . . . . . . . 1 . . . . 1 . 1 Processor 10 | . . . . . 1 1 . . . . . 2 . . . 2 . 1 . . . . . . 3 Hackware 13 | . . . . . 1 1 . . . . 2 . . 1 1 4 . . . . 1 . 1 . 1 Protection 15 | . . . 4 . 1 2 1 . 1 . . 1 2 . . 1 . . . 1 . . . . 1 Artifact . | . . . . . . . . . . . . . . . . . . . . . . . . . . Weapon 118 | . 17 4 31 9 15 . . 1 . . . 11 . 1 . 9 . 8 1 . 1 3 4 . 3 Energy Gun 12 | . 2 . 10 . . . . . . . . . . . . . . . . . . . . . . Energy Cannon 23 | . 9 2 7 . 5 . . . . . . . . . . . . . . . . . . . . Ballistic Gun 25 | . 1 . 3 5 3 . . . . . . 8 . . . . . . . . . . 2 . 3 Ballistic Cannon . | . . . . . . . . . . . . . . . . . . . . . . . . . . Launcher 6 | . 1 . 3 1 . . . . . . . . . . . 1 . . . . . . . . . Special Weapon 10 | . 4 . 1 1 4 . . . . . . . . . . . . . . . . . . . . Impact Weapon . | . . . . . . . . . . . . . . . . . . . . . . . . . . Slashing Weapon 14 | . . 2 7 2 3 . . . . . . . . . . . . . . . . . . . . Piercing Weapon 28 | . . . . . . . . 1 . . . 3 . 1 . 8 . 8 1 . 1 3 2 . . Special Melee Weapon . | . . . . . . . . . . . . . . . . . . . . . . . . . . Unidentified Prototypes 11 | . . . 5 1 1 1 . . . . . . . . . . . 1 . . 2 . . . . Parts Lost 49 | . 5 . 5 . 3 . . . . . . 4 . . 2 4 . . . 1 . . 12 . 13 Power 5 | . 1 . . . . . . . . . . . . . 1 1 . . . . . . 2 . . Propulsion 16 | . 2 . 1 . 1 . . . . . . 2 . . . 2 . . . . . . 2 . 6 Utility 18 | . . . 2 . 1 . . . . . . 2 . . 1 1 . . . 1 . . 6 . 4 Weapon 10 | . 2 . 2 . 1 . . . . . . . . . . . . . . . . . 2 . 3 Highest Loss Streak 8 | . 4 . 2 . 2 . . . . . . 3 . . 2 2 . . . 1 . . 8 . 7 Average Slot Usage (%) 92 | . 99 100 95 99 98 91 92 92 92 92 88 90 86 91 92 82 88 87 92 84 84 91 63 36 46 Engine 6 | . 14 14 11 10 8 . . . . . . . . . . . . . . . . . 1 . . Core 2 | . . . . . . 7 7 7 7 7 6 6 6 6 5 2 5 4 5 5 5 5 3 . 1 Treads 10 | . . . 29 32 25 . . . . . . . . . . . . . . . . . . . 1 Leg 5 | . 27 28 3 . . . . . . . . . . . . . . . . . . . . . . Flight 10 | . . . . . 1 30 30 30 30 30 26 25 26 26 26 18 23 22 23 23 23 23 12 5 3 Device 3 | . . . . . 6 6 6 7 7 7 6 5 3 . 6 3 5 5 5 5 4 5 2 . . Storage 20 | . 28 28 22 33 26 15 15 15 15 15 13 13 13 13 13 11 11 10 11 11 11 11 9 10 8 Processor 3 | . . . . . . 7 7 7 7 7 6 10 20 20 7 11 11 11 11 7 5 5 3 . 11 Hackware 10 | . . . . . 7 15 15 15 15 15 21 17 13 13 24 27 29 29 28 23 24 29 23 15 9 Protection 1 | . . . 6 . 2 . . . . . . 2 3 6 . . . . . 4 5 5 1 . 1 Energy Gun 1 | . 2 . 9 2 . . . . . . . . . . . . . . . . . . 1 . . Energy Cannon 6 | . 19 26 8 . 8 . . . . . . . . . . . . . . . . . . . . Ballistic Gun 3 | . 1 . . 18 6 . . . . . . 3 . . . . . . . . . . 1 . 4 Slashing Weapon 1 | . . 1 2 . 1 7 7 5 . . . . . . . . . . . . . . . . . Naked Turns . | . . . . . . . . . . . . . . . . . . . . . . . . . . Heaviest Build 71 | 14 45 45 52 62 71 25 25 25 25 25 25 36 23 24 25 28 24 28 27 28 29 29 45 19 48 Greatest Support 64 | 20 20 20 60 64 64 25 25 25 25 25 25 26 26 26 26 28 26 26 26 26 26 26 43 23 29 Greatest Overweight (x) 9 | . 2 2 2 1 2 . . . . . . 1 . . . 9 . 8 1 1 1 1 3 . 5 Average Overweight (x) . | . 1 2 . . . . . . . . . . . . . . . . . . . . . . . Largest Inventory Capacity 22 | 8 16 16 20 22 22 12 12 12 12 12 12 12 12 12 12 12 12 12 12 12 12 12 12 12 16 Average Capacity 14 | 6 11 16 16 21 21 12 12 12 12 12 12 12 12 12 12 12 12 11 12 12 12 12 11 12 10 Most Carried 22 | 6 16 16 16 22 22 12 12 12 12 12 12 12 12 12 11 12 12 12 12 12 12 12 12 12 12 Average Carried 14 | 6 10 16 15 20 21 11 12 11 12 11 11 10 11 11 10 10 12 11 11 11 11 11 10 11 6 Final Capacity 22 | 8 16 16 20 22 12 12 12 12 12 12 12 12 12 12 12 12 12 12 12 12 12 12 12 12 4 Final Carried 22 | 6 16 16 16 22 12 12 12 12 12 12 12 12 12 11 11 12 12 11 12 12 12 12 11 12 4 Class Distribution -------------------- 28% | Mutant 23% | Hauler-Mutant 16% | Hacker-Sprinter 11% | Hacker-Mutant 7% | Wizard-Mutant 7% | Scavenger-Mutant 6% | Wizard-Sprinter Dominant Class ---------------- Mutant | -10/Materials Mutant | -10/Mines Mutant | -9/Materials Hauler-Mutant | -9/Storage Hauler-Mutant | -8/Materials Hacker-Sprinter | -7/Factory Hacker-Sprinter | -7/Lower Caves Hacker-Sprinter | -7/Lower Caves Hacker-Mutant | -7/Data Miner Hacker-Sprinter | -6/Proximity Caves Hacker-Sprinter | -6/Factory Hacker-Sprinter | -6/Extension Hacker-Sprinter | -6/Cetus Hacker-Sprinter | -6/Archives Hacker-Sprinter | -6/Hub_04(d) Wizard-Mutant | -5/Factory Wizard-Sprinter | -5/Waste Wizard-Mutant | -5/Factory Wizard-Mutant | -5/Upper Caves Hacker-Sprinter | -5/Upper Caves Hacker-Mutant | -5/Zhirov Wizard-Sprinter | -4/Proximity Caves Wizard-Mutant | -4/Factory Hacker-Mutant | -4/Waste Mutant | -4/Factory Resources | -11 -10 -10 -9 -9 -8 -7 -7 -7 -7 -6 -6 -6 -6 -6 -6 -5 -5 -5 -5 -5 -5 -4 -4 -4 -4 ----------- Run | Scr Mat Min Mat Sto Mat Fac Low Low Dat Pro Fac Ext Cet Arc Hub Fac Was Fac Upp Upp Zhi Pro Fac Was Fac Matter Collected 4872 | 214 574 65 556 652 941 30 23 40 . 109 . 475 5 55 20 288 . . 311 4 100 47 83 . 280 Remotely . | . . . . . . . . . . . . . . . . . . . . . . . . . . Salvage Created 7800 | 100 1297 129 1586 983 1679 . . . . . . 404 . 146 121 300 . . 248 . 340 . 37 . 430 Parts 437 | 3 81 9 102 63 100 . . . . . . 16 . 8 3 20 . . 1 . 2 . 4 . 25 Haulers Intercepted 13 | . 2 . 4 4 3 . . . . . . . . . . . . . . . . . . . . Recyclers Shooed 5 | . . . . 2 3 . . . . . . . . . . . . . . . . . . . . Parts Field Recycled . | . . . . . . . . . . . . . . . . . . . . . . . . . . Retrieved Matter . | . . . . . . . . . . . . . . . . . . . . . . . . . . Parts Self-Destructed 8 | . . . . . . . 2 . . 5 . . . . . . . . . . 1 . . . . Prevented . | . . . . . . . . . . . . . . . . . . . . . . . . . . Kills | -11 -10 -10 -9 -9 -8 -7 -7 -7 -7 -6 -6 -6 -6 -6 -6 -5 -5 -5 -5 -5 -5 -4 -4 -4 -4 ------- Run | Scr Mat Min Mat Sto Mat Fac Low Low Dat Pro Fac Ext Cet Arc Hub Fac Was Fac Upp Upp Zhi Pro Fac Was Fac Combat Hostiles Destroyed 123 | . 25 4 30 18 31 . . . . . . 4 . . . 6 . . . . . . . . 5 Melee 8 | . 1 2 3 . . . . . . . . 1 . . . 1 . . . . . . . . . Guns 61 | . 7 . 16 16 14 . . . . . . 3 . . . . . . . . . . . . 5 Cannons 36 | . 16 1 2 . 17 . . . . . . . . . . . . . . . . . . . . AOE 17 | . 1 1 8 2 . . . . . . . . . . . 5 . . . . . . . . . Classes Destroyed 15 | 1 7 1 3 1 1 . . . . . . . . . . . . . 1 . . . . . . Worker 14 | . 1 . 5 2 2 . . . . . . 1 . . . 2 . . . . . . . . 1 Builder 7 | . . 2 3 . . . . . . . . 1 . . . 1 . . . . . . . . . Tunneler 3 | . 1 . . . . . . . . . . . . . . 2 . . . . . . . . . Hauler 13 | . 2 . 4 4 3 . . . . . . . . . . . . . . . . . . . . Recycler 12 | 1 1 . 4 1 2 . . . . . . 1 . . 1 1 . . . . . . . . . Mechanic 1 | . . . . 1 . . . . . . . . . . . . . . . . . . . . . Operator 11 | . 4 . 1 3 2 . . . . . . . . . . . . . . . . . 1 . . Watcher 8 | . 1 . 1 . 3 . . . . . . . . . . 3 . . . . . . . . . Swarmer 43 | . 5 3 14 4 10 . . . . . . 1 . . . 6 . . . . . . . . . Grunt 55 | . 20 1 10 9 11 . . . . . . 1 . . . . . . . . . . . . 3 Brawler 2 | . . . 1 . 1 . . . . . . . . . . . . . . . . . . . . Duelist 1 | . . . 1 . . . . . . . . . . . . . . . . . . . . . . Sentry 18 | . . . 4 5 6 . . . . . . 2 . . . . . . . . . . . . 1 Hunter 4 | . . . . . 3 . . . . . . . . . . . . . . . . . . . 1 Samaritan 2 | . . . . . . . . . . . . . . . . . . . 2 . . . . . . Best Kill Streak 17 | 1 5 4 17 10 5 . . . . . . 2 . . 1 12 . . . . . . 1 . 3 Combat Bots Only 9 | . 4 1 9 6 5 . . . . . . 1 . . . 5 . . . . . . . . 3 Max Kills in Single Turn 12 | 1 2 2 5 3 2 . . . . . . 1 . . 1 12 . . 1 . . . 1 . 2 Gunslinging . | . . . . . . . . . . . . . . . . . . . . . . . . . . Exploded 5 | . 1 1 3 1 . . . . . . . . . . . 5 . . . . . . . . . Melee 1 | . 1 1 1 . . . . . . . . 1 . . . 1 . . . . . . . . . Uniques/NPCs Destroyed . | . . . . . . . . . . . . . . . . . . . . . . . . . . Combat | -11 -10 -10 -9 -9 -8 -7 -7 -7 -7 -6 -6 -6 -6 -6 -6 -5 -5 -5 -5 -5 -5 -4 -4 -4 -4 -------- Run | Scr Mat Min Mat Sto Mat Fac Low Low Dat Pro Fac Ext Cet Arc Hub Fac Was Fac Upp Upp Zhi Pro Fac Was Fac Damage Taken 10082 | . 769 200 1370 479 1918 100 . . . 16 . 403 82 39 205 467 . 45 . 220 . . 1302 . 2467 Core 2196 | . 89 39 123 30 228 13 . . . . . 71 44 19 95 179 . . . 83 . . 306 . 877 Absorbed by Shields . | . . . . . . . . . . . . . . . . . . . . . . . . . . Core Remaining (%) 73 | 100 . 48 . 61 58 . . . . 98 . . . . 73 . . . . . . 73 . . . Volleys Fired 426 | 4 96 8 70 60 137 . . . . . . 30 . . . 1 . . . . . . 1 . 19 Largest 2 | 2 2 2 2 2 2 . . . . . . 2 . . . 1 . . . . . . 2 . 2 Hottest 136 | 70 112 112 112 68 136 . . . . . . 66 . . . 43 . . . . . . 80 . 70 Shots Fired 778 | 8 151 16 123 117 269 . . . . . . 60 . . . 1 . . . . . . 2 . 31 Gun 524 | 8 53 . 75 113 182 . . . . . . 60 . . . . . . . . . . 2 . 31 Cannon 206 | . 75 16 40 . 75 . . . . . . . . . . . . . . . . . . . . Launcher 7 | . 1 . 3 2 . . . . . . . . . . . 1 . . . . . . . . . Special 41 | . 22 . 5 2 12 . . . . . . . . . . . . . . . . . . . . Kinetic 415 | 4 25 . 3 110 182 . . . . . . 60 . . . . . . . . . . . . 31 Thermal 134 | 4 34 . 5 2 87 . . . . . . . . . . . . . . . . . 2 . . Explosive 7 | . 1 . 3 2 . . . . . . . . . . . 1 . . . . . . . . . Electromagnetic 222 | . 91 16 112 3 . . . . . . . . . . . . . . . . . . . . . Robot Hit Streak 45 | 3 11 5 14 43 45 . . . . . . 9 . . . 2 . . . . . . 3 . 16 Robot Miss Streak 5 | 2 4 1 2 2 5 . . . . . . 3 . . . . . . . . . . 1 . 3 Penetration Max 2 | . . . . . . . . . . . . 2 . . . . . . . . . . . . 1 Secondary Targets 5 | . . . 1 1 3 . . . . . . . . . . . . . . . . . . . . Max Gunslinging Chain 1 | . . . 1 1 1 . . . . . . . . . . . . . . . . . . . . Shots Hit Robots 601 | 4 96 17 87 101 197 . . . . . . 44 . 8 1 6 . . 8 . 5 . 2 . 25 Core Hits 318 | 2 49 7 64 46 75 . . . . . . 23 . 4 1 18 . . 5 . 4 . 1 . 19 Critical Hits 39 | . 2 . 4 1 7 . . . . . . 13 . . . . . . 1 . . . . . 11 Critical Kills 12 | . . . . . 3 . . . . . . 3 . . . . . . 1 . . . . . 5 Critical Parts Destroyed 22 | . 2 . 4 1 3 . . . . . . 8 . . . . . . . . . . . . 4 Melee Attacks 238 | . . 14 24 3 9 26 6 4 . 5 15 19 . 8 7 45 . 15 11 . 5 17 5 . . Impact . | . . . . . . . . . . . . . . . . . . . . . . . . . . Slashing 86 | . . 14 24 3 9 26 6 4 . . . . . . . . . . . . . . . . . Piercing 152 | . . . . . . . . . . 5 15 19 . 8 7 45 . 15 11 . 5 17 5 . . Sneak Attacks 9 | . . . . . . . . . . . . 4 . . 1 1 . . 3 . . . . . . Combat Hostiles . | . . . . . . . . . . . . . . . . . . . . . . . . . . Follow-up Attacks . | . . . . . . . . . . . . . . . . . . . . . . . . . . Damage Inflicted 14928 | 61 1947 500 2385 1818 3052 . . . . . . 814 . 812 75 1803 . . 716 . 577 . 74 . 294 Guns 5614 | 61 476 . 910 1533 2074 . . . . . . 343 . . . . . . . . . . 15 . 202 Cannons 2797 | . 1141 254 512 . 890 . . . . . . . . . . . . . . . . . . . . Explosions 3023 | . 156 121 864 275 . . . . . . . . . . . 1529 . . . . . . . . 78 Melee 3159 | . . 125 50 . . . . . . . . 471 . 812 75 274 . . 716 . 577 . 59 . . Ramming 27 | . 4 . 9 . . . . . . . . . . . . . . . . . . . . . 14 Kinetic 4369 | 10 212 . 43 1485 2074 . . . . . . 343 . . . . . . . . . . . . 202 Thermal 2997 | 51 300 121 391 10 978 . . . . . . . . . . 1053 . . . . . . 15 . 78 Explosive 1392 | . 128 . 513 275 . . . . . . . . . . . 476 . . . . . . . . . Electromagnetic 2984 | . 1303 254 1379 48 . . . . . . . . . . . . . . . . . . . . . Impact . | . . . . . . . . . . . . . . . . . . . . . . . . . . Slashing 175 | . . 125 50 . . . . . . . . . . . . . . . . . . . . . . Piercing 2984 | . . . . . . . . . . . . 471 . 812 75 274 . . 716 . 577 . 59 . . Highest Corruption 13 | . 3 3 . . . 5 5 5 5 5 . 2 2 2 2 . 9 9 9 9 8 8 5 12 13 Average Corruption 4 | . 2 3 . . . 1 5 5 5 5 . 2 2 2 2 . 9 9 9 8 8 8 2 9 12 Corruption Purged 1 | . . . . . . . . . . . . . . . . . . . . 1 . . . . . Effects 118 | . 20 14 . . . 3 7 4 1 . . 4 . 2 . . 1 15 8 3 4 13 2 3 14 Message Errors 27 | . 5 5 . . . 2 1 . . . . . . 1 . . . 5 3 . . 2 1 . 2 Matter Fused 28 | . 8 3 . . . . 3 1 . . . . . . . . . 2 2 1 1 4 . . 3 Heat Flow Errors 13 | . 3 1 . . . . . 1 . . . 3 . . . . . . . . 1 2 . 1 1 Energy Discharges 22 | . 1 3 . . . . 2 1 1 . . . . . . . . 4 . 2 1 3 1 1 2 Parts Rejected 1 | . . . . . . . . . . . . . . . . . 1 . . . . . . . . Data Loss (minor) 11 | . 2 2 . . . . 1 1 . . . . . . . . . 3 1 . . . . . 1 Data Loss (major) 1 | . . . . . . . . . . . . . . . . . . . . . 1 . . . . Misdirections 4 | . . . . . . . . . . . . . . . . . . . . . . . . 1 3 Targeting Errors 11 | . 1 . . . . 1 . . . . . 1 . 1 . . . 1 2 . . 2 . . 2 Overload Shots . | . . . . . . . . . . . . . . . . . . . . . . . . . . Overflow Damage 908 | . 38 22 46 25 8 . . . . . . . . 273 . 293 . . 85 . 118 . . . . Projectiles 27 | . 13 6 . . 8 . . . . . . . . . . . . . . . . . . . . Explosions 359 | . 25 4 46 25 . . . . . . . . . . . 259 . . . . . . . . . Melee 522 | . . 12 . . . . . . . . . . . 273 . 34 . . 85 . 118 . . . . Knockbacks . | . . . . . . . . . . . . . . . . . . . . . . . . . . Impact . | . . . . . . . . . . . . . . . . . . . . . . . . . . Kinetic . | . . . . . . . . . . . . . . . . . . . . . . . . . . Secondary . | . . . . . . . . . . . . . . . . . . . . . . . . . . Self-Inflicted Damage 387 | . 38 63 280 . . . . . . . . . . . . . . . . . . . . . 6 Shots 10 | . 1 2 7 . . . . . . . . . . . . . . . . . . . . . . Rammed 7 | . . . 2 . . . . . . . . . . . . . . . . . . . . . 5 Targets Rammed 9 | . 1 . 3 . . . . . . . . . . . . . . . . . . . . . 5 Kicked 1 | . 1 . . . . . . . . . . . . . . . . . . . . . . . . Crushed 1 | . . . 1 . . . . . . . . . . . . . . . . . . . . . . Highest Temperature 435 | 60 239 226 435 8 162 7 . 242 . . . 269 4 . 4 . . 3 . 19 136 105 11 226 208 Average Temperature 80 | 30 79 61 109 3 43 4 . 119 . . . 95 4 . 3 . . 3 . 12 77 57 11 113 70 Received Heat Transfer 1878 | . 372 9 258 159 648 24 . . . . . 51 . 18 99 54 . 9 . 21 . . 21 . 135 Effects 4 | . . . 4 . . . . . . . . . . . . . . . . . . . . . . Shutdowns 1 | . . . 1 . . . . . . . . . . . . . . . . . . . . . . Interference 3 | . . . 3 . . . . . . . . . . . . . . . . . . . . . . Siege Activations . | . . . . . . . . . . . . . . . . . . . . . . . . . . Robots Corrupted 1 | . . . 1 . . . . . . . . . . . . . . . . . . . . . . Combat Hostiles 1 | . . . 1 . . . . . . . . . . . . . . . . . . . . . . Parts Fried 23 | . 11 . 12 . . . . . . . . . . . . . . . . . . . . . . Impact Corruptions . | . . . . . . . . . . . . . . . . . . . . . . . . . . Robots Melted . | . . . . . . . . . . . . . . . . . . . . . . . . . . Combat Hostiles . | . . . . . . . . . . . . . . . . . . . . . . . . . . Parts Melted 2 | . . . . . 1 . . . . . . . . . . 1 . . . . . . . . . Heat Transferred 4421 | 148 901 100 598 37 1850 . . . . . . . . . . 650 . . . . . . 37 . 100 Parts Sabotaged . | . . . . . . . . . . . . . . . . . . . . . . . . . . Parts Stolen . | . . . . . . . . . . . . . . . . . . . . . . . . . . Parts Stripped . | . . . . . . . . . . . . . . . . . . . . . . . . . . Power Chain Reactions 8 | . 1 2 5 . . . . . . . . . . . . . . . . . . . . . . Missiles Intercepted . | . . . . . . . . . . . . . . . . . . . . . . . . . . Alert | -11 -10 -10 -9 -9 -8 -7 -7 -7 -7 -6 -6 -6 -6 -6 -6 -5 -5 -5 -5 -5 -5 -4 -4 -4 -4 ------- Run | Scr Mat Min Mat Sto Mat Fac Low Low Dat Pro Fac Ext Cet Arc Hub Fac Was Fac Upp Upp Zhi Pro Fac Was Fac Peak Influence 843 | 5 436 252 477 364 393 280 . . . . 67 114 26 142 136 843 323 323 . . . . 35 31 302 Average Influence 188 | 2 279 150 180 138 243 169 . . . . 58 34 10 54 48 310 310 229 . . . . 14 12 209 Maximum Alert Level 3 | . 2 1 2 1 1 1 . . . . . . . . . 3 1 1 . . . . . . 1 Low Security (%) 52 | 100 22 52 71 65 22 61 . . . . 100 100 100 100 100 38 . 27 . . . . 100 100 24 Level 1 42 | . 65 47 18 34 77 38 . . . . . . . . . 28 100 72 . . . . . . 75 Level 2 4 | . 12 . 9 . . . . . . . . . . . . 19 . . . . . . . . . Level 3 . | . . . . . . . . . . . . . . . . 13 . . . . . . . . . Level 4 . | . . . . . . . . . . . . . . . . . . . . . . . . . . Level 5 . | . . . . . . . . . . . . . . . . . . . . . . . . . . High Security . | . . . . . . . . . . . . . . . . . . . . . . . . . . Max Security . | . . . . . . . . . . . . . . . . . . . . . . . . . . Squads Dispatched 45 | . 8 . 2 4 3 5 . . . . 2 4 1 . 9 . . 1 . . . . 3 . 3 Investigation 26 | . 5 . . 1 2 4 . . . . 1 3 1 . 7 . . . . . . . 2 . . Extermination 3 | . . . . . . 1 . . . . 1 . . . . . . 1 . . . . . . . Reinforcement 15 | . 3 . 2 3 1 . . . . . . 1 . . 2 . . . . . . . 1 . 2 Assault 1 | . . . . . . . . . . . . . . . . . . . . . . . . . 1 Garrison . | . . . . . . . . . . . . . . . . . . . . . . . . . . Intercept . | . . . . . . . . . . . . . . . . . . . . . . . . . . Construction Impeded 1 | . . . . . . . . . . . . . . . . . . . . . . . . . 1 Haulers Reinforced . | . . . . . . . . . . . . . . . . . . . . . . . . . . Stealth | -11 -10 -10 -9 -9 -8 -7 -7 -7 -7 -6 -6 -6 -6 -6 -6 -5 -5 -5 -5 -5 -5 -4 -4 -4 -4 --------- Run | Scr Mat Min Mat Sto Mat Fac Low Low Dat Pro Fac Ext Cet Arc Hub Fac Was Fac Upp Upp Zhi Pro Fac Was Fac Distress Signals 31 | . 3 1 4 6 2 3 . . . . . 2 1 . 1 3 . . . . . . 2 . 3 Communications Jammed . | . . . . . . . . . . . . . . . . . . . . . . . . . . Distress Signals . | . . . . . . . . . . . . . . . . . . . . . . . . . . Times Spotted 398 | . 63 7 51 28 45 23 1 . . 4 . 12 11 11 13 33 6 8 . 18 . . 33 5 26 Peak Tracking Total 18 | . 5 3 8 6 5 11 1 . . 4 1 4 10 9 11 10 6 5 . 9 . . 18 5 10 Tactical Retreats 49 | . 5 2 1 . 3 4 1 . . 2 . 3 . 1 . 11 . 3 . 3 . . 6 . 4 Traps | -11 -10 -10 -9 -9 -8 -7 -7 -7 -7 -6 -6 -6 -6 -6 -6 -5 -5 -5 -5 -5 -5 -4 -4 -4 -4 ------- Run | Scr Mat Min Mat Sto Mat Fac Low Low Dat Pro Fac Ext Cet Arc Hub Fac Was Fac Upp Upp Zhi Pro Fac Was Fac Traps Triggered 12 | . 5 . . 1 . . . . . . . 2 . . . 2 . . . . . . 2 . . Indirectly . | . . . . . . . . . . . . . . . . . . . . . . . . . . Trap Hack Attempts . | . . . . . . . . . . . . . . . . . . . . . . . . . . Triggered . | . . . . . . . . . . . . . . . . . . . . . . . . . . Disarmed . | . . . . . . . . . . . . . . . . . . . . . . . . . . Reprogrammed 16 | . . . . 6 . . . . . . 4 . . . . . . . . . . . 6 . . Reused 3 | . . . . 2 . . . . . . . . . . . . . . . . . . 1 . . Traps Extracted . | . . . . . . . . . . . . . . . . . . . . . . . . . . Installed . | . . . . . . . . . . . . . . . . . . . . . . . . . . Triggered 3 | . . . . 2 . . . . . . . . . . . . . . . . . . 1 . . Machines | -11 -10 -10 -9 -9 -8 -7 -7 -7 -7 -6 -6 -6 -6 -6 -6 -5 -5 -5 -5 -5 -5 -4 -4 -4 -4 ---------- Run | Scr Mat Min Mat Sto Mat Fac Low Low Dat Pro Fac Ext Cet Arc Hub Fac Was Fac Upp Upp Zhi Pro Fac Was Fac Machines Disabled 27 | . 2 . 8 3 3 . . . . . . . . . . 8 . . . . . . . . 3 Max in Single Turn 8 | . 1 . 4 1 1 . . . . . . . . . . 8 . . . . . . . . 3 Garrison Access 2 | . . . . . . . . . . . . . . . . . . . . . . . 1 . 1 Network Hub 1 | . . . . . . . . . . . . . . . 1 . . . . . . . . . . Energy Cycler 1 | . . . . . . . . . . . . 1 . . . . . . . . . . . . . Machines Sabotaged 2 | . . . . . . . . . . . . 1 . . 1 . . . . . . . . . . Garrisons Compromised . | . . . . . . . . . . . . . . . . . . . . . . . . . . Overloaded Fab Kills . | . . . . . . . . . . . . . . . . . . . . . . . . . . Fab Network Shutdowns 1 | . . . . . . . . . . . . . . . . 1 . . . . . . . . . Hacking | -11 -10 -10 -9 -9 -8 -7 -7 -7 -7 -6 -6 -6 -6 -6 -6 -5 -5 -5 -5 -5 -5 -4 -4 -4 -4 --------- Run | Scr Mat Min Mat Sto Mat Fac Low Low Dat Pro Fac Ext Cet Arc Hub Fac Was Fac Upp Upp Zhi Pro Fac Was Fac Machines Accessed 111 | . 5 . 8 8 11 15 1 1 4 . 5 15 3 1 9 7 . 6 1 . 6 . 5 . . Terminals 71 | . 3 . 7 7 6 10 . 1 . . 3 14 3 . 9 3 . 3 . . . . 2 . . Fabricators 6 | . . . . . . . . . . . 2 . . . . 2 . 1 . . . . 1 . . Repair Stations 10 | . . . . 1 1 2 . . . . . 1 . . . 2 . 2 . . . . 1 . . Recycling Units 5 | . 2 . . . 1 2 . . . . . . . . . . . . . . . . . . . Scanalyzers 4 | . . . 1 . 2 1 . . . . . . . . . . . . . . . . . . . Garrison Access 2 | . . . . . 1 . . . . . . . . . . . . . . . . . 1 . . Total Hacks 410 | . 14 . 22 29 30 38 1 3 29 . 19 43 10 25 34 27 . 36 1 . 19 . 30 . . Successful 296 | . 6 . 16 11 19 25 1 1 29 . 15 33 4 25 29 20 . 19 1 . 19 . 23 . . Failed 111 | . 8 . 6 18 11 13 . 2 . . 3 9 5 . 5 7 . 17 . . . . 7 . . Catastrophic 12 | . . . 1 2 1 1 . . . . . 1 1 . . 1 . 3 . . . . 1 . . Database Lockouts 3 | . . . . . . . . . . . 1 1 1 . . . . . . . . . . . . Manual 204 | . 12 . 11 17 19 20 . 3 . . 13 30 10 . 24 10 . 13 . . . . 22 . . Terminals 256 | . 10 . 16 27 19 29 . 3 . . 13 41 10 . 34 14 . 19 . . . . 21 . . Fabricators 22 | . . . . . . . . . . . 6 . . . . 8 . 5 . . . . 3 . . Repair Stations 32 | . . . . 2 2 4 . . . . . 2 . . . 5 . 12 . . . . 5 . . Recycling Units 8 | . 4 . . . 1 3 . . . . . . . . . . . . . . . . . . . Scanalyzers 13 | . . . 6 . 5 2 . . . . . . . . . . . . . . . . . . . Garrison Access 4 | . . . . . 3 . . . . . . . . . . . . . . . . . 1 . . Terminal Hacks 165 | . 2 . 8 6 6 8 1 1 29 . 6 21 2 25 13 4 . 4 1 . 19 . 9 . . Record 43 | . . . . . . . . . 11 . . . . 25 . . . . . . 7 . . . . Part Schematic 22 | . 1 . . . 1 . . . 8 . 2 4 . . . 1 . 1 . . 4 . . . . Robot Schematic 8 | . . . . . . 1 . . 7 . . . . . . . . . . . . . . . . Robot Analysis 7 | . 1 . . . . . . . . . . . 1 . 1 . . . . . 4 . . . . Prototype ID Bank 8 | . . . . . . . . . 3 . . 1 . . . . . . . . 4 . . . . Open Door 6 | . . . . 2 . . 1 . . . . 2 . . . . . . 1 . . . . . . Level Access Points 1 | . . . . . . . . . . . . . . . 1 . . . . . . . . . . Branch Access Points 3 | . . . 1 . . 1 . . . . 1 . . . . . . . . . . . . . . Emergency Access Points 2 | . . . 1 . 1 . . . . . . . . . . . . . . . . . . . . Machine Index 5 | . . . . . . . . . . . 1 . . . 1 1 . 1 . . . . 1 . . Terminal Index 3 | . . . . . . 1 . . . . . . . . 1 . . 1 . . . . . . . Alert Level 4 | . . . 1 . . . . . . . . 2 . . 1 . . . . . . . . . . Unreport Threat 11 | . . . 2 2 2 . . . . . . 4 . . 1 . . . . . . . . . . Locate Traps 8 | . . . 2 . 1 2 . . . . . 1 . . 1 . . 1 . . . . . . . Reprogram Traps 3 | . . . . 1 . . . . . . 1 . . . . . . . . . . . 1 . . Maintenance Status 1 | . . . . . . . . . . . . . . . . . . . . . . . 1 . . Security Status 1 | . . . . . . . . . . . . . . . . . . . . . . . 1 . . Patrol Status 4 | . . . . . . . . 1 . . . 1 . . . 1 . . . . . . 1 . . Garrison Status 1 | . . . . . . . . . . . . . . . . . . . . . . . 1 . . Recall Investigation 5 | . . . . . . . . . . . 1 1 1 . 1 . . . . . . . 1 . . Recall Extermination 1 | . . . . . . 1 . . . . . . . . . . . . . . . . . . . Recall Reinforcements 3 | . . . . . . . . . . . . 1 . . 1 . . . . . . . 1 . . Hauler Manifests 3 | . . . 1 1 1 . . . . . . . . . . . . . . . . . . . . Zone Layout 12 | . . . . . . 2 . . . . . 4 . . 4 1 . . . . . . 1 . . Fabricator Hacks 14 | . . . . . . . . . . . 4 . . . . 6 . 2 . . . . 2 . . Load Schematic 7 | . . . . . . . . . . . 2 . . . . 3 . 1 . . . . 1 . . Build 7 | . . . . . . . . . . . 2 . . . . 3 . 1 . . . . 1 . . Repair Station Hacks 27 | . . . . 2 . 4 . . . . . 2 . . . 5 . 9 . . . . 5 . . Scan Component 13 | . . . . 1 . 2 . . . . . 1 . . . 2 . 5 . . . . 2 . . Repair 12 | . . . . 1 . 2 . . . . . 1 . . . 2 . 4 . . . . 2 . . Refit 2 | . . . . . . . . . . . . . . . . 1 . . . . . . 1 . . Recycling Unit Hacks . | . . . . . . . . . . . . . . . . . . . . . . . . . . Scanalyzer 13 | . . . 6 . 5 2 . . . . . . . . . . . . . . . . . . . Insert Component 6 | . . . 3 . 2 1 . . . . . . . . . . . . . . . . . . . Analyze 7 | . . . 3 . 3 1 . . . . . . . . . . . . . . . . . . . Garrison Access Hacks 1 | . . . . . . . . . . . . . . . . . . . . . . . 1 . . Seal Access 1 | . . . . . . . . . . . . . . . . . . . . . . . 1 . . Unauthorized Hacks 76 | . 4 . 2 3 8 11 . . . . 5 10 2 . 16 5 . 4 . . . . 6 . . Terminals 63 | . 2 . 2 3 6 8 . . . . 3 10 2 . 16 3 . 3 . . . . 5 . . Track 17 | . 1 . 1 1 2 1 . . . . . 3 1 . 3 2 . 1 . . . . 1 . . Assimilate 6 | . . . . . 1 3 . . . . . 1 . . . . . . . . . . 1 . . Botnet 18 | . . . 1 2 2 2 . . . . 2 3 1 . 2 1 . 1 . . . . 1 . . Detonate 4 | . . . . . . . . . . . . . . . 4 . . . . . . . . . . Disrupt 5 | . . . . . . 1 . . . . . 2 . . . . . 1 . . . . 1 . . Operators 5 | . 1 . . . 1 1 . . . . 1 . . . . . . . . . . . 1 . . Sabotage 8 | . . . . . . . . . . . . 1 . . 7 . . . . . . . . . . Fabricators 6 | . . . . . . . . . . . 2 . . . . 2 . 1 . . . . 1 . . Siphon 6 | . . . . . . . . . . . 2 . . . . 2 . 1 . . . . 1 . . Repair Stations . | . . . . . . . . . . . . . . . . . . . . . . . . . . Recycling Units 6 | . 2 . . . 1 3 . . . . . . . . . . . . . . . . . . . Recyclers 1 | . . . . . . 1 . . . . . . . . . . . . . . . . . . . Mask 2 | . . . . . . 2 . . . . . . . . . . . . . . . . . . . Tunnel 3 | . 2 . . . 1 . . . . . . . . . . . . . . . . . . . . Scanalyzers . | . . . . . . . . . . . . . . . . . . . . . . . . . . Garrison Access 1 | . . . . . 1 . . . . . . . . . . . . . . . . . . . . Watchers 1 | . . . . . 1 . . . . . . . . . . . . . . . . . . . . Data Cores Recovered 1 | . . . . . . . . . . . . 1 . . . . . . . . . . . . . Used 1 | . . . . . . . . . . . . 1 . . . . . . . . . . . . . Hacking Detections 80 | . 4 . 8 8 9 12 . 1 . . 4 15 3 . 3 4 . 6 . . . . 3 . . Full Trace Events 10 | . . . . 2 2 4 . . . . . 1 . . . . . . . . . . 1 . . Feedback Events 3 | . . . . . . 1 . . . . . . . . . . . . . . . . 2 . . Corruption 2 | . . . . . . 1 . . . . . . . . . . . . . . . . 1 . . Hackware Fried 1 | . . . . . . . . . . . . . . . . . . . . . . . 1 . . Feedback Blocked . | . . . . . . . . . . . . . . . . . . . . . . . . . . Robot Schematics Acquired 8 | . . . . . . 1 . . 7 . . . . . . . . . . . . . . . . Robots Built . | . . . . . . . . . . . . . . . . . . . . . . . . . . Matter . | . . . . . . . . . . . . . . . . . . . . . . . . . . Time . | . . . . . . . . . . . . . . . . . . . . . . . . . . Total Robot Build Rating . | . . . . . . . . . . . . . . . . . . . . . . . . . . Part Schematics Acquired 27 | . 1 . 3 . 2 1 . . 8 . 2 4 . . . 1 . 1 . . 4 . . . . Parts Built 8 | . . . . . . . . . . . 3 . . . . 4 . 1 . . . . . . . Matter 1759 | . . . . . . . . . . . 508 . . . . 743 . 190 . . . . 318 . . Time 459 | . . . . . . . . . . . 131 . . . . 213 . 31 . . . . 84 . . Total Part Build Rating 44 | . . . . . . . . . . . 16 . . . . 23 . 5 . . . . . . . Parts Repaired 12 | . . . . 1 . 2 . . . . . 1 . . . 2 . 4 . . . . 2 . . Time 429 | . . . . 26 . 70 . . . . . 50 . . . 120 . 122 . . . . 41 . . Parts Recycled . | . . . . . . . . . . . . . . . . . . . . . . . . . . Recycled Matter . | . . . . . . . . . . . . . . . . . . . . . . . . . . Retrieved Matter . | . . . . . . . . . . . . . . . . . . . . . . . . . . Retrieved Components . | . . . . . . . . . . . . . . . . . . . . . . . . . . Parts Scanalyzed 6 | . . . 3 . 2 1 . . . . . . . . . . . . . . . . . . . Part Schematics Acquired 5 | . . . 3 . 1 1 . . . . . . . . . . . . . . . . . . . Parts Damaged 1 | . . . . . 1 . . . . . . . . . . . . . . . . . . . . Bothacking | -11 -10 -10 -9 -9 -8 -7 -7 -7 -7 -6 -6 -6 -6 -6 -6 -5 -5 -5 -5 -5 -5 -4 -4 -4 -4 ------------ Run | Scr Mat Min Mat Sto Mat Fac Low Low Dat Pro Fac Ext Cet Arc Hub Fac Was Fac Upp Upp Zhi Pro Fac Was Fac Used RIF Installer . | . . . . . . . . . . . . . . . . . . . . . . . . . . Robots Hacked . | . . . . . . . . . . . . . . . . . . . . . . . . . . Non-combat . | . . . . . . . . . . . . . . . . . . . . . . . . . . Combat . | . . . . . . . . . . . . . . . . . . . . . . . . . . Robot Hacks Applied . | . . . . . . . . . . . . . . . . . . . . . . . . . . Relay Couplers Released 2 | . . . . . . . . . . . . . . . . . . . . . . . . . 2 Machine Destruction 2 | . . . . . . . . . . . . . . . . . . . . . . . . . 2 Robots Rewired 5 | . . . . . . . . . . . . 4 . . . 1 . . . . . . . . . Allies Hacked . | . . . . . . . . . . . . . . . . . . . . . . . . . . Hacks Repelled . | . . . . . . . . . . . . . . . . . . . . . . . . . . Allies | -11 -10 -10 -9 -9 -8 -7 -7 -7 -7 -6 -6 -6 -6 -6 -6 -5 -5 -5 -5 -5 -5 -4 -4 -4 -4 -------- Run | Scr Mat Min Mat Sto Mat Fac Low Low Dat Pro Fac Ext Cet Arc Hub Fac Was Fac Upp Upp Zhi Pro Fac Was Fac Total Allies 23 | . . . . . 1 2 . . . 1 . 15 . 3 . 1 . . . . . . . . . Largest Group 9 | . . . . . 1 1 . . . 1 1 9 6 3 . 1 . . . . . . . . . Highest-Rated Group 357 | . . . . . 10 26 . . . 94 94 262 175 357 . 29 . . . . . . . . . Highest-Rated Ally 122 | . . . . . 10 26 . . . 94 94 37 37 122 . 29 . . . . . . . . . Total Orders 4 | . . . . 1 . . . . . . 1 2 . . . . . . . . . . . . . STAY 1 | . . . . . . . . . . . . 1 . . . . . . . . . . . . . FOLLOW 1 | . . . . . . . . . . . . 1 . . . . . . . . . . . . . EXPLORE 2 | . . . . 1 . . . . . . 1 . . . . . . . . . . . . . . Ally Attacks 107 | . . . . . . . . . . 7 . 65 10 19 . 6 . . . . . . . . . Total Damage 2463 | . . . . . . . . . . 186 . 1094 232 836 . 115 . . . . . . . . . Kills 15 | . . . . . . . . . . 3 . 7 . 4 . 1 . . . . . . . . . Allies Corrupted . | . . . . . . . . . . . . . . . . . . . . . . . . . . Allies Melted 1 | . . . . . . . . . . . . . . 1 . . . . . . . . . . . Intel | -11 -10 -10 -9 -9 -8 -7 -7 -7 -7 -6 -6 -6 -6 -6 -6 -5 -5 -5 -5 -5 -5 -4 -4 -4 -4 ------- Run | Scr Mat Min Mat Sto Mat Fac Low Low Dat Pro Fac Ext Cet Arc Hub Fac Was Fac Upp Upp Zhi Pro Fac Was Fac Robot Analysis Total 7 | . 1 . . . . . . . . . . . 1 . 1 . . . . . 4 . . . . Derelict Logs Recovered 6 | . . 1 . . . . 1 . . . . . . . . . . . . 2 . 2 . . . Drone Launches 6 | . . . . 2 . . . . . . 2 2 . . . . . . . . . . . . . Drone Recoveries . | . . . . . . . . . . . . . . . . . . . . . . . . . . Exploration | -11 -10 -10 -9 -9 -8 -7 -7 -7 -7 -6 -6 -6 -6 -6 -6 -5 -5 -5 -5 -5 -5 -4 -4 -4 -4 ------------- Run | Scr Mat Min Mat Sto Mat Fac Low Low Dat Pro Fac Ext Cet Arc Hub Fac Was Fac Upp Upp Zhi Pro Fac Was Fac Turns Passed 12722 | 22 1745 754 1778 1027 2006 524 303 204 65 170 279 1069 77 44 125 794 28 554 154 75 103 273 246 48 255 Spaces Moved 11981 | 8 871 349 805 388 800 951 481 325 100 310 443 1117 127 94 289 1258 87 883 257 295 266 452 632 116 277 Core 201 | . . . . . . . . . . . . . . . . 2 . 1 . . . . . . 198 Treads 1821 | . . . 676 388 740 . . . . . . . . . . . . . . . . . . . 17 Legs 1360 | 8 871 349 129 . . . . . . . . . . . . . . . . . . . . . 3 Wheels . | . . . . . . . . . . . . . . . . . . . . . . . . . . Hover . | . . . . . . . . . . . . . . . . . . . . . . . . . . Flight 8599 | . . . . . 60 951 481 325 100 310 443 1117 127 94 289 1256 87 882 257 295 266 452 632 116 59 Fastest Speed 21 | 120 120 180 150 150 99 26 27 27 27 27 27 24 24 24 24 21 21 21 21 21 21 21 21 40 34 Average Speed 65 | 120 150 180 162 165 165 26 27 27 27 27 27 33 24 24 24 27 21 24 46 21 29 33 27 40 58 Slowest Speed 500 | 120 180 180 200 180 175 27 27 27 27 27 27 101 24 24 27 500 21 450 101 101 101 101 292 40 385 Overloaded Moves . | . . . . . . . . . . . . . . . . . . . . . . . . . . Propulsion Burnouts . | . . . . . . . . . . . . . . . . . . . . . . . . . . Robots Hopped 110 | . . . . . . 11 . . . . 1 20 4 1 10 26 . 21 2 11 . . 3 . . Cave-ins Triggered . | . . . . . . . . . . . . . . . . . . . . . . . . . . Exploration Rate (%) 53 | 2 84 60 56 66 69 28 74 52 74 55 15 82 69 77 46 32 79 22 39 53 62 64 19 90 15 Regions Visited 25 Branch Regions 14 Pre-discovered Areas 9 | . 2 . . . 1 . . . 1 . . . . . . . . . . 1 3 1 . . . Known Exits Taken 17 | . . . 1 . 1 1 1 1 1 1 1 1 1 1 1 . . 1 1 1 1 1 . . . Unknown Exits Taken 4 | 1 1 1 . 1 . . . . . . . . . . . . . . . . . . . . . Scrap Searched 8 | . . 1 . . . . 1 2 . 1 . . . . . . . . 3 . . . . . . Spaces Dug 161 | . . . 23 . 8 26 6 4 . 5 13 8 . . 5 31 . 14 3 . . 13 2 . . Terrain Destroyed 355 | . 9 10 116 12 8 26 6 4 . 5 13 8 . . 5 59 . 14 3 . . 13 2 . 42 Melee 152 | . . . 14 . 8 26 6 4 . 5 13 8 . . 5 31 . 14 3 . . 13 2 . . Projectile . | . . . . . . . . . . . . . . . . . . . . . . . . . . AOE 203 | . 9 10 102 12 . . . . . . . . . . . 28 . . . . . . . . 42 Actions | -11 -10 -10 -9 -9 -8 -7 -7 -7 -7 -6 -6 -6 -6 -6 -6 -5 -5 -5 -5 -5 -5 -4 -4 -4 -4 --------- Run | Scr Mat Min Mat Sto Mat Fac Low Low Dat Pro Fac Ext Cet Arc Hub Fac Was Fac Upp Upp Zhi Pro Fac Was Fac Total 15643 | 12 1129 430 1099 644 1194 1176 642 435 136 391 587 1716 167 106 327 1628 95 1181 272 293 283 550 696 116 338 Wait 2334 | . 90 54 85 144 157 172 153 103 36 70 116 475 40 . 33 233 4 250 . 1 . 76 34 . 8 Move 11754 | 7 870 348 804 387 799 930 480 324 99 309 440 1082 120 91 268 1208 86 842 252 274 265 451 626 115 277 Hop 94 | . . . . . . 9 . . . . 1 14 2 1 10 24 . 19 2 9 . . 3 . . Pick Up 163 | . 20 . 17 11 16 14 . 1 . 3 6 7 1 2 4 36 . 12 2 3 2 . 5 1 . Fast Attach 72 | 1 5 . 11 5 7 2 . 1 . . 1 . . 1 . 7 3 6 1 . 4 . 6 . 11 Attach 89 | . 4 . 7 1 14 4 . . . . 2 10 . 1 . 17 . 9 1 . 2 3 6 . 8 Detach 44 | . . . 1 . . . . . . . . 7 . . . 14 . 9 1 . 1 3 5 . 3 Swap 147 | . 23 5 40 19 20 6 3 . 1 1 . 7 3 . 2 6 . 8 . 3 . . . . . Drop 208 | . 20 1 37 13 35 13 . 2 . 3 5 4 1 2 3 35 2 11 2 3 4 . 5 . 7 Fire 426 | 4 96 8 70 60 137 . . . . . . 30 . . . 1 . . . . . . 1 . 19 Melee 238 | . . 14 24 3 9 26 6 4 . 5 15 19 . 8 7 45 . 15 11 . 5 17 5 . . Ram 5 | . . . . . . . . . . . . . . . . . . . . . . . . . 5 Kick 1 | . 1 . . . . . . . . . . . . . . . . . . . . . . . . Crush 3 | . . . 3 . . . . . . . . . . . . . . . . . . . . . . Escape Stasis 21 | . . . . . . . . . . . . 21 . . . . . . . . . . . . . Rewire 41 | . . . . . . . . . . . . 39 . . . 2 . . . . . . . . . Trap . | . . . . . . . . . . . . . . . . . . . . . . . . . . Miscellaneous 3 | . . . . 1 . . . . . . 1 1 . . . . . . . . . . . . . Route ------- -11/Scrapyard -10/Materials (discovered 3 exits: *Mat x2 / [*Min]) -10/Mines -9/Materials (discovered 4 exits: *Min x2 / *Sto x2) -9/Storage -8/Materials -7/Factory (discovered 3 exits: *Fac / *Low x2) -7/Lower Caves -7/Lower Caves -7/Data Miner -6/Proximity Caves -6/Factory (discovered 4 exits: Low x2 / *Ext x2) -6/Extension (discovered 3 exits: *Fac x2 / *Cet) -6/Cetus (discovered 2 exits: *Fac / *Arc) -6/Archives (discovered 2 exits: *Hub x2) -6/Hub_04(d) (discovered 4 exits: *Fac x4) -5/Factory -5/Waste -5/Factory -5/Upper Caves -5/Upper Caves (discovered 2 exits: *Fac / *Zhi) -5/Zhirov -4/Proximity Caves -4/Factory -4/Waste -4/Factory History --------- Turn | Location | Event 13 | -11/Scrapyard | Discovered new exit (range 1) 23 | -11/Scrapyard | Entered Materials 228 | -10/Materials | Discovered new exit (range 13) 328 | -10/Materials | Build established: Mutant 497 | -10/Materials | Lost 4 parts (1p1n2w) 794 | -10/Materials | Discovered new exit (range 16) 1266 | -10/Materials | Discovered new exit (range 11) 1768 | -10/Materials | Entered Mines 1781 | -10/Mines | Met a Derelict bent on vengeance 1851 | -10/Mines | Core integrity fell below 50% 1928 | -10/Mines | Learned 2 Materials zone layouts 2275 | -10/Mines | Excavation squad dispatched 2275 | -10/Mines | A large section of the Mines collapsed 2465 | -10/Mines | Discovered new exit (range 15) 2522 | -10/Mines | Entered Materials 2522 | -9/Materials | Evolved 2 slots: Propulsion x1, Utility x1 2625 | -9/Materials | Identified exit to Mines 2625 | -9/Materials | Identified exit to Storage 2935 | -9/Materials | Destroyed 9 combat bots 2937 | -9/Materials | Build established: Scavenger-Mutant 3652 | -9/Materials | Build established: Mutant 4300 | -9/Materials | Entered Storage 4582 | -9/Storage | Build established: Hauler-Mutant 4680 | -9/Storage | Repaired Lgt. Treads 5213 | -9/Storage | Discovered new exit (range 15) 5327 | -9/Storage | Entered Materials 5327 | -8/Materials | Evolved 2 slots: Utility x2 7144 | -8/Materials | Discovered new exit (range 14) 7332 | -8/Materials | Identified exit to Factory 7333 | -8/Materials | Entered Factory 7333 | -7/Factory | Evolved 2 slots: Propulsion x1, Utility x1 7442 | -7/Factory | Discovered new exit (range 4) 7442 | -7/Factory | Identified exit to Factory 7617 | -7/Factory | Identified exit to Lower Caves 7639 | -7/Factory | Repaired Adv. Sensor Array 7662 | -7/Factory | Repaired Imp. Flight Unit? 7857 | -7/Factory | Entered Lower Caves 7868 | -7/Lower Caves | Attracted the attention of an 0b10 checkpoint 7931 | -7/Lower Caves | Encountered a Warlord checkpoint 7936 | -7/Lower Caves | Learned 8 Factory zone layouts 8155 | -7/Lower Caves | Discovered new exit (range 9) 8158 | -7/Lower Caves | Identified exit to Lower Caves 8160 | -7/Lower Caves | Entered another Lower Caves area 8307 | -7/Lower Caves | Discovered new exit (range 10) 8364 | -7/Lower Caves | Identified exit to Data Miner 8364 | -7/Lower Caves | Entered Data Miner 8364 | -7/Data Miner | Discovered new exit (range 6) 8370 | -7/Data Miner | Met Data Miner 8375 | -7/Data Miner | Learned location of Section 7 (-2) 8375 | -7/Data Miner | Acquired the access code to Warlord's prototype stash 8397 | -7/Data Miner | Received God Mode back door access code from Data Miner 8412 | -7/Data Miner | Identified exit to Proximity Caves 8429 | -7/Data Miner | Entered Proximity Caves 8563 | -6/Proximity Caves | Escorted by Enhanced Grunt 8580 | -6/Proximity Caves | Discovered exit to Factory (range 5) 8599 | -6/Proximity Caves | Entered Factory 8599 | -6/Factory | Accompanied by 1 ally 8599 | -6/Factory | Evolved 2 slots: Utility x2 8690 | -6/Factory | Discovered new exit (range 54) 8711 | -6/Factory | Identified exit to Lower Caves 8711 | -6/Factory | Identified exit to Extension 8803 | -6/Factory | Fabricated Hyp. Gauss Rifle (x2) 8832 | -6/Factory | Central database locked down 8850 | -6/Factory | Fabricated Exp. Cesium-ion Thruster? 8878 | -6/Factory | Entered Extension 8928 | -6/Extension | Rescued a captive Derelict 8928 | -6/Extension | Rescued a captive Derelict 8968 | -6/Extension | Incoming investigation squad redirected 8986 | -6/Extension | Energy Cycler disabled 8986 | -6/Extension | Rescued a captive Derelict 8987 | -6/Extension | Rescued a captive Derelict 8987 | -6/Extension | Rescued a captive Derelict 8988 | -6/Extension | Rescued a captive Derelict 8989 | -6/Extension | Rescued a captive Derelict 8989 | -6/Extension | Rescued a captive Derelict 8989 | -6/Extension | Rescued a captive Derelict 8991 | -6/Extension | Rescued a captive Derelict 8993 | -6/Extension | Rescued a captive Derelict 9001 | -6/Extension | Rescued a captive Derelict 9002 | -6/Extension | Rescued a captive Derelict 9023 | -6/Extension | Central database locked down 9041 | -6/Extension | Incoming investigation squad redirected 9258 | -6/Extension | Allies destroyed B-75 Beast 9278 | -6/Extension | Lost 3 parts (1n2u) 9452 | -6/Extension | Discovered new exit (range 15) 9454 | -6/Extension | Extracted ID and sensor layout for unrecognized location from A7's data core 9795 | -6/Extension | Repaired Hyp. Gauss Rifle 9900 | -6/Extension | Discovered new exit (range 10) 9900 | -6/Extension | Discovered new exit (range 6) 9906 | -6/Extension | Identified exit to Cetus 9947 | -6/Extension | Entered Cetus 9947 | -6/Cetus | Accompanied by 8 allies 9973 | -6/Cetus | Spotted Cetus Guard 9973 | -6/Cetus | Spotted Cetus Guard 9975 | -6/Cetus | Spotted Cetus Guard 9975 | -6/Cetus | Spotted Cetus Guard 9988 | -6/Cetus | Central database locked down 9989 | -6/Cetus | Discovered new exit (range 52) 10020 | -6/Cetus | Discovered new exit (range 16) 10024 | -6/Cetus | Identified exit to Archives 10024 | -6/Cetus | Entered Archives 10028 | -6/Archives | Met Zhirov 10029 | -6/Archives | Unable to access archive contents 10030 | -6/Archives | Discovered new exit (range 15) 10032 | -6/Archives | Read partially decrypted archive contents 10032 | -6/Archives | Read partially decrypted archive contents 10032 | -6/Archives | Discovered new exit (range 15) 10034 | -6/Archives | Reinforcements dispatched to Archives 10041 | -6/Archives | Unable to access archive contents 10053 | -6/Archives | Unable to access archive contents 10068 | -6/Archives | Identified exit to Hub_04(d) 10068 | -6/Archives | Entered Hub_04(d) 10072 | -6/Hub_04(d) | Discovered new exit (range 10) 10134 | -6/Hub_04(d) | Identified exit to Factory 10138 | -6/Hub_04(d) | Network Hub disabled 10164 | -6/Hub_04(d) | Incoming investigation squad redirected 10186 | -6/Hub_04(d) | Incoming investigation squad redirected 10191 | -6/Hub_04(d) | Incoming investigation squad redirected 10193 | -6/Hub_04(d) | Entered Factory 10193 | -5/Factory | Evolved 2 slots: Utility x2 10286 | -5/Factory | Discovered new exit (range 16) 10374 | -5/Factory | Repaired Imp. VTOL Module 10583 | -5/Factory | Repaired Imp. VTOL Module 10667 | -5/Factory | Build established: Wizard-Mutant 10796 | -5/Factory | Fabricated Hyp. Coil Gun? 10865 | -5/Factory | Fabricated Exp. Cesium-ion Thruster? 10880 | -5/Factory | Local fabrication network quarantined 10890 | -5/Factory | Fabricated Exp. Sensor Array (x1) 10987 | -5/Factory | Manually triggered Chute Trap 10987 | -5/Factory | Sucked down chute 10987 | -5/Factory | Entered Waste 10991 | -5/Waste | Spotted C-40 Crusher 10993 | -5/Waste | Spotted C-40 Crusher 10993 | -5/Waste | Spotted C-40 Crusher 11001 | -5/Waste | Build established: Wizard-Sprinter 11001 | -5/Waste | Spotted C-40 Crusher 11002 | -5/Waste | EMP discharged 11002 | -5/Waste | Spotted C-40 Crusher 11003 | -5/Waste | Spotted C-40 Crusher 11006 | -5/Waste | Discovered new exit (range 14) 11015 | -5/Waste | Identified exit to Factory 11015 | -5/Waste | Entered Factory 11032 | -5/Factory | Repaired Med. Storage Unit 11074 | -5/Factory | Repaired Broken Lgt. Fission Core 11127 | -5/Factory | Repaired Exp. Cesium-ion Thruster 11213 | -5/Factory | Discovered new exit (range 8) 11217 | -5/Factory | Identified exit to Upper Caves 11345 | -5/Factory | Fabricated Adv. ECM Suite? 11537 | -5/Factory | Repaired Imp. VTOL Module? 11569 | -5/Factory | Entered Upper Caves 11721 | -5/Upper Caves | Discovered new exit (range 9) 11722 | -5/Upper Caves | Identified exit to Upper Caves 11723 | -5/Upper Caves | Entered another Upper Caves area 11743 | -5/Upper Caves | Discovered new exit (range 9) 11759 | -5/Upper Caves | Learned location of Warlord (-4) 11763 | -5/Upper Caves | Attracted the attention of an 0b10 checkpoint 11795 | -5/Upper Caves | Learned Factory emergency access door positions 11795 | -5/Upper Caves | Discovered new exit (range 6) 11796 | -5/Upper Caves | Identified exit to Zhirov 11798 | -5/Upper Caves | Entered Zhirov 11798 | -5/Zhirov | Discovered new exit (range 3) 11808 | -5/Zhirov | Learned location of Quarantine (-3) 11808 | -5/Zhirov | Learned location of Testing (-2) 11808 | -5/Zhirov | Learned location of Command (-1) 11815 | -5/Zhirov | Found Alien Artifact 11815 | -5/Zhirov | Identified Integrated Reactor 11815 | -5/Zhirov | Installed Integrated Reactor, increased core energy generation (+2%) 11888 | -5/Zhirov | Found Alien Artifact 11901 | -5/Zhirov | Identified exit to Proximity Caves 11901 | -5/Zhirov | Entered Proximity Caves 11903 | -4/Proximity Caves | Learned location of Armory (-4) 11988 | -4/Proximity Caves | Learned Research stockpile data 12171 | -4/Proximity Caves | Discovered new exit (range 15) 12173 | -4/Proximity Caves | Identified exit to Factory 12174 | -4/Proximity Caves | Entered Factory 12174 | -4/Factory | Evolved 2 slots: Utility x2 12226 | -4/Factory | Imp. System Shield fried by hacking feedback 12287 | -4/Factory | Lost 4 parts (1p3u) 12336 | -4/Factory | Repaired Nuclear Pulse Array 12358 | -4/Factory | Repaired Med. Storage Unit 12420 | -4/Factory | Manually triggered Chute Trap 12420 | -4/Factory | Sucked down chute 12420 | -4/Factory | Entered Waste 12426 | -4/Waste | Lost 8 parts (1p2n3u2w) 12435 | -4/Waste | EMP discharged 12435 | -4/Waste | System corruption reached 10% 12445 | -4/Waste | Spotted C-40 Crusher 12447 | -4/Waste | Spotted C-40 Crusher 12452 | -4/Waste | Spotted C-40 Crusher 12453 | -4/Waste | Spotted C-40 Crusher 12453 | -4/Waste | Spotted C-40 Crusher 12456 | -4/Waste | Spotted C-40 Crusher 12461 | -4/Waste | Discovered new exit (range 14) 12468 | -4/Waste | Entered Factory 12548 | -4/Factory | Spotted B-86 Titan 12645 | -4/Factory | Lost 7 parts (2n2u3w) 12675 | -4/Factory | Core integrity fell below 50% 12714 | -4/Factory | Core integrity fell below 20% 12723 | -4/Factory | Destroyed by P-70 Sage via exploding Fusion Modulator Last Messages --------------- 12710_ Acquired Imp. Gravmag System. 12711_ Slug penetrates Wall. 12711_ Repair Station disabled. 12712_ Acquired Imp. Gravmag System. 12713_ Penetrated by Slug. 12713_ Imp. Gravmag System destroyed. 12713_ Penetrated by Slug. 12716_ System corrupted: Matter fused (-9). 12716_ Penetrated by Slug. 12716_ Imp. Gravmag System destroyed. 12716_ Penetrated by Slug. 12722_ K-01 Serf cleans the Recycling Unit. 12723_ Fusion Modulator explodes. 12723_ Recycling Unit disabled. 12723_ Impulse Thruster tumbles out of recycling unit. 12723_ Recycling Unit disabled. 12723_ ALERT: Garrison Access compromised, dispatching assault squad. 12723_ Garrison Access disabled. 12723_ Relay Coupler [Swarmer] tumbles out of Garrison Access. 12723_ Relay Coupler [NC] tumbles out of Garrison Access. Map ----- +----------------------------------------------------+ | ?????????????????????????????????????????????????? | | ?????????????????????????????????????????????????? | | ?????????????????????????????????????????????????? | | ?????????????????????????????????????????????????? | | ?????????????????????????????????????????????????? | | ?????????????????????????????????????????????????? | | ?????????????????????????????????????????????????? | | ?????????????????????????????????????????????????? | | ?????????????????????????????????????????????????? | | ?????????????????????????????????????????????????? | | ?????????????????????????????????????????????????? | | ?????????????????????????????????????????????????? | | ?????????????????????????????????????????????????? | | ?????????????????????????????????????????????????? | | ?????????????????????????????????????????????????? | | ?????????????????????????????????????????????????? | | ?????????????????????????????????????????????????? | | ?????????????????????????????????????????????????? | | ??????????????????#+?????????????????????????????? | | ??????????????????# ????????????????????????????? | | ????????????# ????# ??????????#????????????????? | | ????????????# ### #####??? #????????????????? | | ????????????# # " #??? #????????????????? | | ????????????# ;"G"#?? #????????????????? | | ????????????# ; ### #????????????????? | | ????????????# @ ! #????????????????? | | ????????????# = #????????#+#?????? | | ????????????# """ ######???# #?????? | | ???????????????""" k #? ??# #?????# | | ????????????# """ " #?"""" ??# #?????# | | ????????????# # """" ## ####### | | ??????????? # """" # | | ?????????????### #"Y ;;;; # """" + | | ???????????????#?#"""; ; # """" # # | | ??????????????????##### ; + """" # # | | ??????????????????????### #### ?# # | | ????????????????????????# #??# ?# # | | ????????????????????????# ##p############ # | | ????????????????????????# ?# R + # | | ????????????????????????#+?#" ! # # | | ???????????????????????????#" # # | | ???????????????????????????#""" # # | | ???????????????????????????# # # | | ???????????????????????????# # # | | ???????????????????????????# # # | | ???????????????????????????# = # # | | ???????????????????????????# = # | | ???????????????????????????# # | | ???????????????????????????# ! [ | | ???????????????????????????# |! ######### | +----------------------------------------------------+ Best States ------------- Heat Dissipation 45 Energy Generation 29 Energy Capacity 315 Matter Stores 300 Matter Capacity 300 Sight Range 16 Robot Scan Range 30 Terrain Scan Range 24 Terrain Scan Density 310 ECM Strength 3 Armor Coverage 225 Propulsion Shielding 66 Evasion (%) 65 Targeting Accuracy 6 Melee Accuracy 6 Core Analysis 8 Armor Integrity Analysis 50 Recoil Reduction 3 Offensive Hacking 50 Defensive Hacking 38 Item Schematics ----------------- Med. Storage Unit | -10/Materials | Hacked Hacking Suite | -9/Materials | Scanalyzed Adv. Beam Cannon | -9/Materials | Scanalyzed Plasma Cutter | -9/Materials | Scanalyzed Adv. Sensor Array | -8/Materials | Hacked Scythe | -8/Materials | Scanalyzed Lrn. Terrain Scanner | -7/Factory | Scanalyzed Combat Drone Bay | -7/Data Miner | Free Lgt. Regenerative Plating | -7/Data Miner | Free Exp. Cesium-ion Thruster | -7/Data Miner | Free Triangulator | -7/Data Miner | Free Exp. Terrain Scanner | -7/Data Miner | Free Exp. Terrain Scan Processor | -7/Data Miner | Free Exp. Targeting Computer | -7/Data Miner | Free Kinetic Spear | -7/Data Miner | Free Hyp. Gauss Rifle | -6/Factory | Hacked Nuclear Pulse Thruster | -6/Factory | Hacked Imp. System Shield | -6/Extension | Hacked Field Propulsion Array | -6/Extension | Hacked Hyp. Coil Gun | -6/Extension | Hacked Imp. Target Analyzer | -6/Extension | Hacked Exp. Sensor Array | -5/Factory | Hacked Adv. ECM Suite | -5/Factory | Hacked Assault Drone Bay | -5/Zhirov | Free Exp. Heat Sink | -5/Zhirov | Free Exp. Optical Array | -5/Zhirov | Free Imp. Arc Thrower | -5/Zhirov | Free Robot Schematics ------------------ L-41 Fighter | -7/Factory | Hacked S-27 Virus | -7/Data Miner | Free G-50 Soldier | -7/Data Miner | Free G-67 Veteran | -7/Data Miner | Free X-72 Disruptor | -7/Data Miner | Free H-66 Slayer | -7/Data Miner | Free I-36 Angel | -7/Data Miner | Free I-47 Archangel | -7/Data Miner | Free Fabricated ------------ Hyp. Gauss Rifle | x2 | -6/Factory Exp. Cesium-ion Thruster | x1 | -6/Factory Hyp. Coil Gun | x2 | -5/Factory Exp. Cesium-ion Thruster | x1 | -5/Factory Exp. Sensor Array | x1 | -5/Factory Adv. ECM Suite | x1 | -5/Factory Alien Tech Used ----------------- Integrated Reactor Achievements -------------- None Challenges ------------ None Game ------ Seed ChargeTargetingFlakker Manual? 0 Play Time 03:28:55 Cumulative 180.2 hours Start 2020.08.22 @ 20:07:59 End 2020.08.22 @ 23:56:28 Sessions 1 Manual Loads 0 Difficulty Rogue Special Mode None Game No. 85 Rogue 85 Adventurer 0 Explorer 0 Win Type - Total 7 Types 6/0/0/1/0/0/0 Lore% 78 Gallery% 73 Achievement% 63 Wizard Run 0 Options --------- ASCII 1 Keyboard 0 Movement Numpad Keybinds 0 Fullscreen 1 Font 18/Cog Map View 76x50 Tactical HUD 1 Map Filters NONE Filters NONE Steam 1 RUN: 3ca2efd3-9688-4135-9d85-aa6203c3ea45